lending/lending_fUSD_20240130
["ID","MTS","AMOUNT","RATE_DAILY","PERIOD"]
[313032482,1706653843947,-405.395451,0.00042,14]
[313032483,1706653843957,-405.395451,0.00042,14]
[313032484,1706653843967,-151.0,0.00042,14]
[313032485,1706653843976,-200.0,0.00042,2]
[313032486,1706653843986,-151.0,0.00042,14]
[313032487,1706653843996,-303.706284,0.00042,14]
[313032488,1706653844006,-666.0,0.000421,4]
[313032489,1706653844016,-203.0,0.00042149,31]
[313032490,1706653844026,-150.0,0.00042177,2]
[313032491,1706653844035,-409.91,0.00042192,2]
[313032492,1706653844045,-409.91,0.00042192,2]
[313032493,1706653844055,-409.91,0.00042192,2]
[313032494,1706653844065,-409.91,0.00042192,2]
[313032495,1706653844075,-409.91,0.00042192,2]
[313032496,1706653844085,-175.75,0.00042192,2]
[313032497,1706653844095,-190.747812,0.00042271,30]
[313032498,1706653844105,-1000.0,0.000425,2]
[313032499,1706653844116,-2560.70468653,0.000426,17]
[313032500,1706653844125,-378.39,0.00042768,2]
[313032501,1706653844135,-152.60468212,0.00042983,18]
[313032502,1706653844144,-160.0,0.00043,2]
[313032503,1706653844153,-900.0,0.00043,3]
[313032504,1706653844163,-444.0,0.0004309,2]
[313032505,1706653844172,-16050.3677002,0.00043153,2]
[313032506,1706653844181,-1793.15656223,0.0004318,2]
[313032507,1706653844191,-6272.48309781,0.00043183,19]
[313032508,1706653844201,-50000.0,0.00043183,30]
[313032509,1706653844210,-17927.68667093,0.00043183,21]
[313032510,1706653844219,-26140.28883919,0.00043183,21]
[313032511,1706653844228,-20759.27353163,0.00043183,21]
[313032512,1706653844237,-13355.23282079,0.00043183,15]
[313032513,1706653844247,-150.0,0.00043259,2]
[313032514,1706653844256,-846.52530274,0.00043382,5]
[313032515,1706653844266,-153.83,0.000435,4]
[313032516,1706653844276,-153.83,0.000435,4]
[313032517,1706653844285,-867.86,0.000435,4]
[313032518,1706653844294,-867.86,0.000435,4]
[313032519,1706653844305,-867.86,0.000435,4]
[313032520,1706653844314,-867.86,0.000435,4]
[313032521,1706653844323,-867.86,0.000435,4]
[313032522,1706653844332,-867.86,0.000435,4]
[313032523,1706653844341,-867.86,0.000435,4]
[313032524,1706653844351,-867.86,0.000435,4]
[313032525,1706653844360,-867.86,0.000435,4]
[313032526,1706653844369,-867.86,0.000435,4]
[313032527,1706653844379,-867.86,0.000435,4]
[313032528,1706653844388,-867.86,0.000435,4]
[313032529,1706653844397,-867.86,0.000435,4]
[313032530,1706653844406,-867.86,0.000435,4]
[313032531,1706653844415,-867.86,0.000435,4]
[313032532,1706653844424,-867.86,0.000435,4]
[313032533,1706653844433,-867.86,0.000435,4]
[313032534,1706653844443,-867.86,0.000435,4]
[313032535,1706653844452,-867.86,0.000435,4]
[313032536,1706653844461,-867.86,0.000435,4]
[313032537,1706653844471,-2013.86,0.0004355,2]
[313032538,1706653844480,-1000.0,0.000438,2]
[313032539,1706653844490,-7924.0,0.000438,2]
[313032540,1706653844499,-666.0,0.00043835,2]
[313032541,1706653844508,-1144.75,0.00043836,15]
[313032542,1706653844519,-1514.89376028,0.00043882,5]
[313032543,1706653844530,-152.0,0.00043956,4]
[313032544,1706653844539,-160.0,0.00044,2]
[313032545,1706653844548,-537.4350766,0.00044059,2]
[313032546,1706653844558,-944.9426165,0.00044098,2]
[313032547,1706653844567,-233.4857931,0.00044098,2]
[313032548,1706653844576,-1969.92002293,0.00044099,2]
[313032549,1706653844586,-1533.00894664,0.00044099,2]
[313032550,1706653844599,-200.0,0.000441,2]
[313032551,1706653844609,-2560.70468653,0.0004424,19]
[313032552,1706653844618,-282.8516771,0.00044274,7]
[313032553,1706653844628,-152.61271863,0.00044274,7]
[313032554,1706653844638,-150.0,0.0004434,2]
[313032555,1706653844647,-152.60468212,0.00044685,24]
[313032556,1706653844656,-175.0,0.00044775,2]
[313032557,1706653844666,-218.585949,0.00044888,30]
[313032558,1706653844675,-846.52530274,0.00044961,5]
[313032559,1706653844685,-365.00651919,0.0004498,3]
[313032560,1706653844694,-5000.0,0.00044986,4]
[313032561,1706653844704,-4489.49905861,0.00045,17]
[313032562,1706653844713,-5000.0,0.00045,30]
[313032563,1706653844723,-253.11560498,0.00045,4]
[313032564,1706653844732,-225.016175,0.00045,2]
[313032565,1706653844742,-32785.62678295,0.00045,4]
[313032566,1706653844751,-6950.8748752,0.00045,28]
[313032567,1706653844760,-160.0,0.00045,2]
[313032568,1706653844770,-1000.0,0.00045,120]
[313032569,1706653844779,-500.0,0.00045,30]
[313032570,1706653844789,-211.46358458,0.00045,7]
[313032571,1706653844798,-950.0,0.00045,3]
[313032572,1706653844807,-3000.0,0.00045,2]
[313032573,1706653844817,-426.0,0.00045,2]
[313032574,1706653844826,-2519.0,0.00045,2]
[313032575,1706653844835,-378.39,0.00045032,2]
[313032576,1706653844845,-189.03,0.00045149,2]
[313032577,1706653844854,-396.0,0.0004519,2]
[313032578,1706653844864,-273.0,0.0004519,2]
[313032579,1706653844873,-2013.86,0.000452,2]
[313032580,1706653844883,-7924.79463594,0.000452,2]
[313032581,1706653844892,-150.0,0.00045422,2]
[313032582,1706653844902,-500.0,0.00045453,4]
[313032583,1706653844912,-500.0,0.00045461,4]
[313032584,1706653844921,-500.0,0.0004547,4]
[313032585,1706653844931,-500.0,0.00045479,4]
[313032586,1706653844940,-234.0131,0.00045648,47]
[313032587,1706653845115,-234.0131,0.00045748,48]
[313032588,1706653845125,-1823.4,0.00045784,5]
[313032589,1706653845134,-234.0131,0.00045848,48]
[313032590,1706653845143,-2560.70468653,0.0004588,21]
[313032591,1706653845153,-666.0,0.0004589,2]
[313032592,1706653845162,-342.13,0.0004589,2]
[313032593,1706653845172,-234.0131,0.00045948,48]
[313032594,1706653845180,-500.0,0.00046,2]
[313032595,1706653845189,-160.0,0.00046,2]
[313032596,1706653845198,-306.9360116,0.00046,3]
[313032597,1706653845207,-234.0131,0.00046048,48]
[313032598,1706653845220,-234.0131,0.00046148,48]
[313032599,1706653845229,-1514.89376028,0.00046221,8]
[313032600,1706653845239,-234.0131,0.00046248,49]
[313032601,1706653845248,-234.0131,0.00046348,49]
[313032602,1706653845258,-152.60468212,0.00046388,30]
[313032603,1706653845269,-234.0131,0.00046448,49]
[313032604,1706653845279,-150.0,0.00046503,2]
[313032605,1706653845288,-152.0,0.00046508,5]
[313032606,1706653845298,-846.52530274,0.0004654,5]
[313032607,1706653845309,-234.0131,0.00046548,49]
[313032608,1706653845318,-1500.0,0.000466,2]
[313032610,1706653845328,-1000.0,0.000466,2]
[313032611,1706653845337,-203.0,0.00046611,38]
[313032612,1706653845346,-234.0131,0.00046648,49]
[313032613,1706653845356,-234.0131,0.00046748,50]
[313032614,1706653845366,-500.0,0.00046774,4]
[313032615,1706653845375,-500.0,0.00046783,4]
[313032617,1706653845385,-500.0,0.00046792,4]
[313032618,1706653845394,-234.0131,0.00046848,51]
[313032619,1706653845405,-291.81,0.00046849,120]
[313032620,1706653845415,-150.0,0.0004685,30]
[313032621,1706653845424,-150.0,0.0004685,30]
[313032622,1706653845434,-150.0,0.0004685,30]
[313032623,1706653845446,-150.0,0.0004685,30]
[313032624,1706653845456,-150.0,0.0004685,30]
[313032625,1706653845466,-150.0,0.0004685,30]
[313032626,1706653845475,-150.0,0.0004685,30]
[313032627,1706653845485,-285.11379508,0.0004685,30]
[313032628,1706653845495,-150.0,0.0004685,30]
[313032629,1706653845505,-150.0,0.0004685,30]
[313032630,1706653845514,-152.57804618,0.0004685,30]
[313032631,1706653845526,-2013.86,0.0004685,2]
[313032632,1706653845536,-234.0131,0.00046948,51]
[313032633,1706653845545,-150.0,0.0004695,30]
[313032634,1706653845555,-160.0,0.00047,2]
[313032635,1706653845565,-166.42213739,0.00047,4]
[313032636,1706653845574,-1000.0,0.00047,9]
[313032637,1706653845584,-1000.0,0.00047,3]
[313032638,1706653845595,-234.0131,0.00047048,51]
[313032639,1706653845605,-150.0,0.0004705,30]
[313032640,1706653845615,-150.0,0.00047123,30]
[313032641,1706653845625,-234.0131,0.00047148,51]
[313032642,1706653845635,-150.0,0.0004715,30]
[313032643,1706653845645,-234.0131,0.00047248,51]
[313032644,1706653845654,-150.0,0.0004725,30]
[313032645,1706653845663,-150.0,0.0004725,30]
[313032646,1706653845673,-378.39,0.00047296,2]
[313032647,1706653845682,-150.0,0.00047323,30]
[313032648,1706653845692,-234.0131,0.00047348,52]
[313032649,1706653845702,-150.0,0.0004735,30]
[313032650,1706653845711,-150.0,0.00047397,30]
[313032651,1706653845723,-234.0131,0.00047448,52]
[313032652,1706653845732,-150.0,0.0004745,30]
[313032653,1706653845742,-150.0,0.000475,30]
[313032654,1706653845751,-2560.70468653,0.0004752,23]
[313032655,1706653845761,-234.0131,0.00047548,52]
[313032656,1706653845771,-150.0,0.0004755,30]
[313032657,1706653845780,-1144.75,0.00047572,15]
[313032658,1706653845789,-150.0,0.00047585,2]
[313032659,1706653845799,-150.0,0.00047593,30]
[313032660,1706653845808,-234.0131,0.00047648,52]
[313032661,1706653845818,-150.0,0.0004765,30]
[313032662,1706653845827,-150.0,0.0004765,30]
[313032663,1706653845837,-150.0,0.00047671,30]
[313032664,1706653845846,-150.0,0.00047717,30]
[313032665,1706653845856,-234.0131,0.00047748,52]
[313032666,1706653845865,-150.0,0.0004775,30]
[313032667,1706653845874,-150.0,0.00047796,30]
[313032668,1706653845883,-537.4350766,0.00047845,2]
[313032669,1706653845893,-234.0131,0.00047848,52]
[313032670,1706653845902,-150.0,0.00047851,30]
[313032671,1706653845912,-150.0,0.00047891,30]
[313032672,1706653845922,-153.83,0.000479,6]
[313032673,1706653845931,-153.83,0.000479,6]
[313032674,1706653845940,-867.86,0.000479,6]
[313032675,1706653845950,-867.86,0.000479,6]
[313032676,1706653845959,-867.86,0.000479,6]
[313032677,1706653845969,-867.86,0.000479,6]
[313032678,1706653845978,-867.86,0.000479,6]
[313032679,1706653845988,-867.86,0.000479,6]
[313032680,1706653845998,-867.86,0.000479,6]
[313032681,1706653846008,-867.86,0.000479,6]
[313032682,1706653846017,-867.86,0.000479,6]
[313032683,1706653846027,-867.86,0.000479,6]
[313032684,1706653846036,-867.86,0.000479,6]
[313032685,1706653846046,-867.86,0.000479,6]
[313032686,1706653846056,-867.86,0.000479,6]
[313032687,1706653846065,-867.86,0.000479,6]
[313032688,1706653846075,-867.86,0.000479,6]
[313032689,1706653846084,-867.86,0.000479,6]
[313032690,1706653846095,-867.86,0.000479,6]
[313032691,1706653846105,-867.86,0.000479,6]
[313032692,1706653846114,-867.86,0.000479,6]
[313032693,1706653846124,-867.86,0.000479,6]
[313032694,1706653846134,-666.0,0.00047945,2]
[313032695,1706653846143,-150.0,0.00047945,30]
[313032696,1706653846153,-234.0131,0.00047948,52]
[313032697,1706653846162,-150.0,0.00047951,30]
[313032698,1706653846171,-300.0,0.00047999,15]
[313032699,1706653846181,-300.0,0.00047999,15]
[313032700,1706653846190,-300.0,0.00047999,15]
[313032701,1706653846199,-300.0,0.00047999,15]
[313032702,1706653846209,-300.0,0.00047999,15]
[313032703,1706653846219,-300.0,0.00047999,15]
[313032704,1706653846228,-300.0,0.00047999,15]
[313032705,1706653846237,-300.0,0.00047999,15]
[313032706,1706653846247,-300.0,0.00047999,15]
[313032707,1706653846257,-300.0,0.00047999,15]
[313032708,1706653846266,-175.55692844,0.00047999,7]
[313032709,1706653846275,-230.17953334,0.00047999,7]
[313032710,1706653846285,-800.0,0.00048,4]
[313032711,1706653846294,-160.0,0.00048,2]
[313032712,1706653846304,-500000.0,0.00048,14]
[313032713,1706653846313,-300.0,0.00048,30]
[313032714,1706653846322,-48569.10806492,0.00048,14]
[313032715,1706653846331,-151.0,0.00048,14]
[313032716,1706653846341,-405.395451,0.00048,14]
[313032717,1706653846351,-405.395451,0.00048,14]
[313032718,1706653846360,-500.0,0.00048,4]
[313032719,1706653846370,-151.0,0.00048,14]
[313032720,1706653846380,-151.0,0.00048,14]
[313032721,1706653846390,-303.706284,0.00048,14]
[313032722,1706653846400,-200000.0,0.00048039,30]
[313032723,1706653846410,-234.0131,0.00048048,52]
[313032724,1706653846420,-150.0,0.00048051,30]
[313032725,1706653846429,-150.0,0.00048051,30]
[313032726,1706653846439,-152.60468212,0.00048091,37]
[313032727,1706653846449,-302.026,0.00048098,54]
[313032728,1706653846459,-846.52530274,0.00048118,5]
[313032729,1706653846469,-234.0131,0.00048148,52]
[313032730,1706653846478,-150.0,0.00048151,30]
[313032731,1706653846487,-150.0,0.00048151,30]
[313032732,1706653846496,-150.0,0.00048219,30]
[313032733,1706653846506,-234.0131,0.00048248,52]
[313032734,1706653846518,-150.0,0.00048251,30]
[313032735,1706653846527,-150.0,0.00048269,30]
[313032736,1706653846536,-150.0,0.00048337,30]
[313032737,1706653846546,-234.0131,0.00048348,53]
[313032738,1706653846557,-150.0,0.00048351,30]
[313032739,1706653846567,-234.0131,0.00048448,53]
[313032740,1706653846576,-150.0,0.00048451,30]
[313032741,1706653846585,-150.0,0.00048451,30]
[313032742,1706653846596,-150.0,0.00048493,30]
[313032743,1706653846606,-10000.0,0.00048499,4]
[313032744,1706653846615,-244.91037718,0.000485,2]
[313032745,1706653846624,-2013.86,0.000485,2]
[313032746,1706653846634,-234.0131,0.00048548,53]
[313032747,1706653846644,-150.0,0.00048551,30]
[313032748,1706653846653,-1514.89376028,0.00048561,10]
[313032749,1706653846662,-150.0,0.00048585,30]
[313032750,1706653846671,-234.0131,0.00048648,53]
[313032751,1706653846681,-150.0,0.00048651,30]
[313032752,1706653846690,-150.0,0.00048666,2]
[313032753,1706653846699,-150.0,0.00048742,30]
[313032754,1706653846709,-234.0131,0.00048748,53]
[313032755,1706653846719,-150.0,0.00048752,30]
[313032756,1706653846728,-150.0,0.00048767,30]
[313032757,1706653846737,-500.0,0.0004877,30]
[313032758,1706653846746,-500.0,0.0004877,30]
[313032759,1706653846755,-500.0,0.0004877,30]
[313032760,1706653846765,-302.026,0.00048798,55]
[313032761,1706653846775,-7481.60655835,0.000488,10]
[313032762,1706653846785,-150.0,0.00048802,30]
[313032763,1706653846794,-234.0131,0.00048848,53]
[313032764,1706653846804,-150.0,0.00048852,30]
[313032765,1706653846813,-150.0,0.00048852,30]
[313032766,1706653846823,-9151.19,0.000489,25]
[313032767,1706653846833,-114166.35619496,0.000489,3]
[313032768,1706653846843,-151.0,0.0004892,2]
[313032769,1706653846853,-150.0,0.00048932,30]
[313032770,1706653846862,-234.0131,0.00048948,53]
[313032771,1706653846872,-150.0,0.00048952,30]
[313032772,1706653846882,-5000.0,0.0004898,7]
[313032773,1706653846892,-195.14564317,0.00048987,30]
[313032774,1706653846901,-151.013,0.00048998,56]
[313032775,1706653846911,-198.6,0.00049,2]
[313032776,1706653846922,-1050.0,0.00049,3]
[313032777,1706653846932,-754.213,0.00049,30]
[313032778,1706653846942,-150.0,0.00049041,30]
[313032779,1706653846951,-500.0,0.00049044,30]
[313032780,1706653846960,-500.0,0.00049044,30]
[313032781,1706653846970,-234.0131,0.00049048,54]
[313032782,1706653846979,-150.0,0.00049052,30]
[313032783,1706653846989,-6449.95,0.0004906,120]
[313032784,1706653846999,-152.0,0.0004906,6]
[313032785,1706653847008,-150.0,0.0004908,30]
[313032786,1706653847018,-234.0131,0.00049148,54]
[313032787,1706653847028,-150.0,0.00049152,30]
[313032788,1706653847037,-1793.15656223,0.00049157,2]
[313032789,1706653847046,-2560.70468653,0.0004916,25]
[313032790,1706653847056,-150.0,0.00049197,60]
[313032791,1706653847065,-150.0,0.00049216,30]
[313032792,1706653847075,-234.0131,0.00049248,54]
[313032793,1706653847084,-150.0,0.00049252,30]
[313032794,1706653847093,-150.0,0.00049252,30]
[313032795,1706653847103,-1000.0,0.000493,2]
[313032796,1706653847112,-187.5,0.00049315,120]
[313032797,1706653847122,-200.0,0.00049315,60]
[313032798,1706653847131,-150.0,0.00049315,30]
[313032799,1706653847140,-500.0,0.00049317,30]
[313032800,1706653847150,-500.0,0.00049317,30]
[313032801,1706653847159,-175.0,0.00049348,2]
[313032802,1706653847169,-234.0131,0.00049348,54]
[313032803,1706653847178,-150.0,0.00049352,30]
[313032804,1706653847187,-50000.0,0.00049425,45]
[313032805,1706653847197,-151.0,0.00049425,14]
[313032806,1706653847206,-405.395451,0.00049425,14]
[313032807,1706653847215,-405.395451,0.00049425,14]
[313032808,1706653847224,-151.0,0.00049425,14]
[313032809,1706653847235,-151.0,0.00049425,14]
[313032810,1706653847245,-303.706284,0.00049425,14]
[313032811,1706653847254,-234.0131,0.00049448,54]
[313032812,1706653847264,-150.0,0.00049452,30]
[313032813,1706653847274,-150.0,0.00049452,30]
[313032814,1706653847283,-150.0,0.00049452,30]
[313032815,1706653847292,-150.0,0.000495,2]
[313032816,1706653847302,-5418.83595339,0.000495,30]
[313032817,1706653847312,-234.0131,0.00049548,55]
[313032818,1706653847322,-150.0,0.00049552,30]
[313032819,1706653847331,-378.39,0.00049559,2]
[313032820,1706653847464,-150.0,0.00049589,30]
[313032821,1706653847474,-500.0,0.0004959,30]
[313032822,1706653847483,-500.0,0.0004959,30]
[313032823,1706653847494,-23882.16364394,0.000496,30]
[313032824,1706653847503,-13308.56386971,0.000496,31]
[313032825,1706653847513,-234.0131,0.00049648,55]
[313032826,1706653847526,-2000.0,0.00049651,5]
[313032827,1706653847535,-2000.0,0.00049651,5]
[313032828,1706653847545,-150.0,0.00049652,30]
[313032829,1706653847555,-150.0,0.00049652,30]
[313032830,1706653847565,-150.0,0.00049689,30]
[313032831,1706653847574,-846.52530274,0.00049697,5]
[313032832,1706653847583,-5587.37,0.000497,35]
[313032833,1706653847593,-302.0,0.00049742,4]
[313032834,1706653847602,-150.0,0.00049748,2]
[313032835,1706653847613,-234.0131,0.00049748,55]
[313032836,1706653847624,-150.0,0.00049753,30]
[313032837,1706653847633,-2689.0,0.0004979,48]
[313032838,1706653847643,-152.60468212,0.00049794,43]
[313032839,1706653847652,-200.0,0.000498,18]
[313032840,1706653847663,-447.5300718,0.00049818,4]
[313032841,1706653847672,-150.0,0.00049824,30]
[313032842,1706653847682,-234.0131,0.00049848,55]
[313032843,1706653847692,-306.47055016,0.00049851,2]
[313032844,1706653847701,-150.0,0.00049853,30]
[313032845,1706653847710,-150.0,0.00049863,30]
[313032846,1706653847719,-150.0,0.00049863,30]
[313032847,1706653847729,-150.0,0.00049863,30]
[313032848,1706653847738,-150.0,0.00049863,30]
[313032849,1706653847747,-150.0,0.00049863,30]
[313032850,1706653847757,-150.0,0.00049863,30]
[313032851,1706653847766,-150.0,0.00049863,30]
[313032852,1706653847775,-150.0,0.00049863,30]
[313032853,1706653847785,-150.0,0.00049863,30]
[313032854,1706653847794,-150.0,0.00049863,30]
[313032855,1706653847805,-150.0,0.00049863,30]
[313032856,1706653847815,-500.0,0.00049863,30]
[313032857,1706653847824,-500.0,0.00049863,30]
[313032858,1706653847834,-1937.0,0.0004989,7]
[313032859,1706653847843,-411.0,0.0004989,2]
[313032860,1706653847853,-1301.0,0.0004989,7]
[313032861,1706653847862,-1879.36554185,0.00049899,4]
[313032862,1706653847871,-42478.58761105,0.000499,7]
[313032863,1706653847881,-125329.60317441,0.000499,7]
[313032864,1706653847891,-1661.64785886,0.000499,120]
[313032865,1706653847900,-1741.99153,0.000499,25]
[313032866,1706653847910,-306.794346,0.000499,31]
[313032867,1706653847920,-2013.86,0.000499,2]
[313032868,1706653847930,-1978.094055,0.000499,31]
[313032869,1706653847939,-200.0,0.000499,18]
[313032870,1706653847948,-303.74,0.000499,2]
[313032871,1706653847958,-500.0,0.0004993,14]
[313032872,1706653847968,-234.0131,0.00049948,55]
[313032873,1706653847977,-150.0,0.00049953,30]
[313032874,1706653847986,-150.0,0.00049973,30]
[313032875,1706653847996,-862.89957327,0.0004998,5]
[313032876,1706653848005,-782.7604584,0.0004998,5]
[313032877,1706653848016,-254.73368192,0.0004998,5]
[313032878,1706653848026,-203.15099525,0.0004998,5]
[313032879,1706653848035,-209.67104588,0.0004998,5]
[313032880,1706653848044,-200.0,0.00049987,17]
[313032881,1706653848055,-200.0,0.00049987,34]
[313032882,1706653848065,-2000.0,0.00049988,45]
[313032883,1706653848075,-14953.56333688,0.0004999,30]
[313032884,1706653848084,-9092.0,0.0004999,2]
[313032885,1706653848094,-6253.0,0.0004999,2]
[313032886,1706653848103,-3586.31312446,0.00049997,2]
[313032887,1706653848112,-50000.0,0.0005,40]
[313032888,1706653848121,-7867.33049521,0.0005,4]
[313032889,1706653848131,-2804.64872091,0.0005,10]
[313032890,1706653848141,-185493.14180386,0.0005,2]
[313032891,1706653848150,-500.0,0.0005,6]
[313032892,1706653848160,-2960.80357646,0.0005,4]
[313032893,1706653848170,-202.31656515,0.0005,14]
[313032894,1706653848181,-10711.55501389,0.0005,2]
[313032895,1706653848191,-503.51,0.0005,7]
[313032896,1706653848200,-18211.95370851,0.0005,20]
[313032897,1706653848210,-2022.39857209,0.0005,7]
[313032898,1706653848220,-359.96543519,0.0005,120]
[313032899,1706653848229,-2500.0,0.0005,120]
[313032900,1706653848239,-2518.0075574,0.0005,60]
[313032901,1706653848248,-503.78281912,0.0005,90]
[313032902,1706653848258,-2866.13539466,0.0005,30]
[313032903,1706653848267,-155.0,0.0005,120]
[313032904,1706653848277,-777.08167289,0.0005,60]
[313032905,1706653848287,-366.3,0.0005,120]
[313032906,1706653848296,-600.0,0.0005,51]
[313032907,1706653848306,-2000.0,0.0005,120]
[313032908,1706653848315,-2000.0,0.0005,60]
[313032909,1706653848324,-2000.0,0.0005,30]
[313032910,1706653848333,-229.54321231,0.0005,4]
[313032911,1706653848342,-2000.0,0.0005,30]
[313032912,1706653848351,-667.47,0.0005,7]
[313032913,1706653848360,-500.0,0.0005,7]
[313032914,1706653848370,-499.999999,0.0005,120]
[313032915,1706653848379,-157.76672526,0.0005,120]
[313032916,1706653848389,-318.87055267,0.0005,30]
[313032917,1706653848398,-582.16256646,0.0005,30]
[313032918,1706653848408,-2000.0,0.0005,90]
[313032919,1706653848417,-326.15257995,0.0005,120]
[313032920,1706653848427,-1000.0,0.0005,50]
[313032921,1706653848436,-1000.0,0.0005,50]
[313032922,1706653848446,-1000.0,0.0005,50]
[313032923,1706653848455,-1000.0,0.0005,50]
[313032924,1706653848464,-1000.0,0.0005,50]
[313032925,1706653848473,-58518.60687347,0.0005,30]
[313032926,1706653848494,-50000.0,0.0005,30]
[313032927,1706653848822,-642.20893278,0.00038843,9]
[313032928,1706653848832,-54.01681024,0.00041096,14]
[313032929,1706653848937,-249.68947376,0.00041096,14]
[313032930,1706653848946,-303.706284,0.00041096,14]
[313032931,1706653848956,-303.706284,0.00042,14]
[313032932,1706653848966,-153.52422636,0.00044087,2]
[313032933,1706653848975,-2706.03983764,0.0005,30]
[313032934,1706653848994,-115871.39048688,0.0005,30]
[313032935,1706653849018,-303.706284,0.00048,14]
[313032936,1706653849027,-712.42009961,0.0005,30]
[313032937,1706653849039,-300.3300001,0.0005,30]
[313032938,1706653849448,-2333.43729331,0.00029975,2]
[313032939,1706653849504,-702.39758572,0.00029975,2]
[313032940,1706653849513,-1899.44302354,0.00041095,4]
[313032941,1706653849740,-8647.55645961,0.00041095,4]
[313032942,1706653849751,-303.706284,0.00049425,14]
[313032943,1706653849761,-5597.61283719,0.0005,30]
[313032944,1706653849773,-12389.61104413,0.0005,30]
[313032945,1706653929860,150.0,0.00023,2]
[313032951,1706654434075,205.0,0.00022297,2]
[313032955,1706654744107,-270.85931142,0.00023258,2]
[313032956,1706654744129,-1856.8271635,0.00023258,2]
[313032957,1706654744150,-191.36685827,0.00023259,2]
[313032958,1706654744171,-215.63478595,0.0002326,2]
[313032959,1706654744191,-249.40429549,0.0002326,2]
[313032960,1706654744254,-155.0,0.00023266,2]
[313032961,1706654744274,-431.1,0.00023312,2]
[313032962,1706654744296,-158.23673734,0.00024097,2]
[313032963,1706654744317,-407.19395765,0.00024195,2]
[313032964,1706654744337,-35721.4923,0.00024196,2]
[313032965,1706654744357,-6735.6551,0.00024196,2]
[313032966,1706654744376,-4221.6086,0.00024196,2]
[313032967,1706654744400,-155.0,0.00024196,2]
[313032968,1706654744420,-1800.42611255,0.00024295,2]
[313032969,1706654744625,-228.78848612,0.00024295,2]
[313032970,1706654744644,-241.01578099,0.00024295,2]
[313032971,1706654744663,-3283.93709179,0.00024295,2]
[313032972,1706654744683,-6253.71474979,0.00024295,2]
[313032973,1706654744704,-401527.11547245,0.00024296,2]
[313032985,1706655031760,-1894.52100381,0.00024294,2]
[313032986,1706655031772,-881.51369091,0.00024294,2]
[313032987,1706655031783,-1349.13911167,0.00024294,2]
[313032988,1706655031793,-756.20210032,0.00024294,2]
[313032989,1706655031805,-911.68,0.00024294,2]
[313032990,1706655031816,-544.02,0.00024294,2]
[313032991,1706655031828,-882.03685024,0.00024294,2]
[313032992,1706655031840,-656.44624679,0.00024294,2]
[313032993,1706655031857,-501.6156142,0.00024294,2]
[313032994,1706655031868,-20672.01629624,0.00024294,2]
[313032996,1706655032072,-365.99710024,0.00024295,2]
[313032998,1706655032082,-244.66025488,0.00024295,2]
[313033000,1706655032092,-270.07137025,0.00024295,2]
[313033003,1706655032102,-190.22937137,0.00024295,2]
[313033004,1706655032111,-1316.21000712,0.00024295,2]
[313033005,1706655032121,-354.87715265,0.00024295,2]
[313033007,1706655032130,-285.83911292,0.00024295,2]
[313033010,1706655032140,-48505.91910962,0.00024296,2]